bitfinex-derivatives/quotes_ETHF0:USTF0_20240817
["timestamp","ask_amount","ask_price","bid_price","bid_amount"]
[1723863883798,0.74546819,2598.6,2598.4,1.108]
[1723863884100,0.74546819,2598.6,2598.4,3.03164]
[1723863884693,0.74546819,2598.6,2598.5,1.92357]
[1723863884897,0.74546819,2598.6,2598.5,3.03157]
[1723863885092,0.74546819,2598.6,2598.5,1.108]
[1723863886894,0.37486819,2598.6,2598.5,7.35500951]
[1723863887098,0.37486819,2598.6,2598.5,5.43143951]
[1723863887099,0.74726819,2598.6,2598.5,5.43143951]
[1723863887304,0.74726819,2598.6,2598.4,6.2394]
[1723863888303,2.67076819,2598.6,2598.4,3.2078]
[1723863888614,3.77876819,2598.6,2598.4,3.2078]
[1723863888803,1.85526819,2598.6,2598.4,5.13143]
[1723863890208,0.74726819,2598.6,2598.4,5.13143]
[1723863891409,2.67076819,2598.6,2598.4,3.2078]
[1723863892497,2.67076819,2598.6,2598.3,4.03779569]
[1723863893913,2.67076819,2598.6,2598.4,1.92364]
[1723863895402,2.67076819,2598.6,2598.3,3.03167]
[1723863896001,2.67076819,2598.6,2598.3,4.03779569]
[1723863896400,2.67076819,2598.6,2598.3,3.03167]
[1723863896605,2.67076819,2598.6,2598.4,1.92363]
[1723863897514,2.67076819,2598.6,2598.3,3.03167]
[1723863897713,1.92372,2598.3,2598.2,1.00612569]
[1723863897907,1.92379,2598.2,2598.1,3.2078]
[1723863898106,4.14169,2598.2,2598.1,3.2078]
[1723863898309,7.99049,2598.2,2598.1,3.2078]
[1723863901412,9.91428,2598.2,2598.1,3.2078]
[1723863901712,9.91428,2598.2,2597.7,1.108]
[1723863901713,12.99052,2598.2,2597.7,1.108]
[1723863901914,1.92409,2597.8,2597.7,1.108]
[1723863902512,1.92406,2597.9,2597.7,3.03216]
[1723863902713,0.3428,2597.8,2597.7,3.03216]
[1723863903417,0.3428,2597.8,2597.7,1.108]
[1723863903618,0.3428,2597.8,2597.7,3.03216]
[1723863904818,0.3428,2598.0,2597.9,1.92401]
[1723863905018,0.3428,2598.0,2597.9,3.03201]
[1723863905522,3.03175,2598.3,2598.0,1.9239]
[1723863905718,1.92379,2598.2,2598.1,1.108]
[1723863906017,1.92387,2598.1,2597.9,6.23978]
[1723863906222,0.7273,2598.1,2597.9,6.23978]
[1723863906411,0.3681,2598.0,2597.9,6.23978]
[1723863906822,0.3649,2598.1,2598.0,1.92394]
[1723863907219,0.3681,2598.2,2598.0,1.92394]
[1723863907422,0.3681,2598.2,2598.1,1.92387]
[1723863907819,0.3681,2598.2,2598.1,3.03187]
[1723863908021,0.3681,2598.2,2598.1,3.38797]
[1723863908223,0.3601,2598.4,2598.3,1.92372]
[1723863908411,0.3696,2598.4,2598.3,1.92372]
[1723863909614,0.3696,2598.4,2598.2,4.6604]
[1723863909926,0.3696,2598.4,2598.2,6.58416]
[1723863910930,0.3696,2598.4,2598.3,1.92372]
[1723863911535,0.3696,2598.4,2598.2,4.6604]
[1723863912037,0.3696,2598.4,2598.2,6.58416]
[1723863913118,2.29326,2598.4,2598.2,6.58416]
[1723863913314,2.29326,2598.4,2598.2,3.5524]
[1723863919634,0.3696,2598.4,2598.2,5.47615]
[1723863919839,2.29326,2598.4,2598.2,3.5524]
[1723863920522,1.92372,2598.3,2598.2,3.2078]
[1723863920720,1.92383,2598.2,2597.9,4.03809569]
[1723863921123,2.28197,2598.1,2597.9,3.03197]
[1723863921325,2.28197,2598.1,2597.9,4.03809569]
[1723863921520,2.28197,2598.1,2597.9,3.03197]
[1723863922131,2.28197,2598.1,2597.9,4.03809569]
[1723863922536,0.3581,2598.1,2597.9,4.03809569]
[1723863923735,0.3581,2598.1,2598.0,1.92394]
[1723863923934,0.3581,2598.1,2598.0,6.23974]
[1723863924125,1.9236,2598.5,2598.2,1.92379]
[1723863924331,2.2894,2598.5,2598.3,0.3648]
[1723863924529,0.3658,2598.5,2598.3,0.3648]
[1723863925140,0.3658,2598.5,2598.4,1.92364]
[1723863927048,0.3658,2598.5,2598.4,3.03164]
[1723863927736,0.3658,2598.5,2598.4,4.03776569]
[1723863927934,0.3658,2598.5,2598.4,3.03164]
[1723863928128,0.00336819,2598.6,2598.5,1.92357]
[1723863928328,0.00336819,2598.6,2598.5,3.03157]
[1723863928929,0.00336819,2598.6,2598.5,3.28557]
[1723863930537,0.00020824,2598.6,2598.5,13.21638313]
[1723863930736,0.00020824,2598.6,2598.5,19.07590185]
[1723863931046,0.00020824,2598.6,2598.5,15.22870508]
[1723863931236,0.00020824,2598.6,2598.5,13.21638313]
[1723863931536,0.00020824,2598.6,2598.5,15.22870508]
[1723863932237,0.00020824,2598.6,2598.5,13.21638313]
[1723863934145,0.00020824,2598.6,2598.5,14.72610735]
[1723863935043,0.00020824,2598.6,2598.5,17.93390735]
[1723863935844,0.00020824,2598.6,2598.5,17.67990735]
[1723863936146,0.00020824,2598.6,2598.5,15.25293858]
[1723863938743,0.00020824,2598.6,2598.5,17.67988326]
[1723863939039,0.00020824,2598.6,2598.5,16.17012445]
[1723863939248,0.00020824,2598.6,2598.5,15.2525501]
[1723863940649,0.00020824,2598.6,2598.5,17.17624851]
[1723863941048,0.00020824,2598.6,2598.5,15.2525501]
[1723863942936,0.00020824,2598.6,2598.5,17.1762324]
[1723863943244,0.00020824,2598.6,2598.5,15.2525501]
[1723863943643,0.00020824,2598.6,2598.5,18.68596271]
[1723863944249,0.00577256,2598.8,2598.5,18.68596271]
[1723863944250,0.00577256,2598.8,2598.7,1.92342]
[1723863944548,0.00577256,2598.8,2598.7,10.31077278]
[1723863944751,0.00577256,2598.8,2598.7,14.71999876]
[1723863945449,0.00577256,2598.8,2598.7,24.06939355]
[1723863945450,2.17e-06,2598.8,2598.7,24.06939355]
[1723863945647,2.17e-06,2598.8,2598.7,24.58199474]
[1723863945843,0.3505,2599.5,2599.4,3.0309]
[1723863946039,0.3505,2599.5,2599.4,6.2387]
[1723863946841,0.35355884,2599.5,2599.4,6.24231934]
[1723863947642,0.35355884,2599.5,2599.4,10.08951934]
[1723863947839,0.35355884,2599.5,2599.4,14.22364577]
[1723863949942,0.00305884,2599.5,2599.4,14.22364577]
[1723863951058,0.00305884,2599.5,2599.4,24.97864577]
[1723863951254,0.00305884,2599.5,2599.4,25.23274577]
[1723863951947,0.00305884,2599.5,2599.4,30.58541019]
[1723863952144,0.00305884,2599.5,2599.4,29.07837402]
[1723863952447,0.00305884,2599.5,2599.4,30.58222386]
[1723863953750,0.00305884,2599.5,2599.4,29.07837402]
[1723863953948,0.00305884,2599.5,2599.4,30.58222386]
[1723863954249,0.00305884,2599.5,2599.4,26.23451697]
[1723863954453,0.00305884,2599.5,2599.4,20.23274577]
[1723863954757,0.00305884,2599.5,2599.4,25.23274577]
[1723863955252,0.00305884,2599.5,2599.4,20.23274577]
[1723863955654,0.00305884,2599.5,2599.4,25.23274577]
[1723863958152,0.00305884,2599.5,2599.4,27.15564577]
[1723863958656,0.00305884,2599.5,2599.4,25.23274577]
[1723863958955,0.00305884,2599.5,2599.4,27.15564577]
[1723863959155,0.00305884,2599.5,2599.4,25.23274577]
[1723863959647,0.00305884,2599.5,2599.4,27.15564577]
[1723863960052,0.00305884,2599.5,2599.4,25.23274577]
[1723863960857,0.00305884,2599.5,2599.4,27.15565577]
[1723863965154,0.00305884,2599.5,2599.4,18.50164577]
[1723863965356,0.00305884,2599.5,2599.4,19.60964577]
[1723863965552,0.00305884,2599.5,2599.4,24.60964577]
[1723863965761,0.00305884,2599.5,2599.4,19.60964577]
[1723863966062,0.00305884,2599.5,2599.4,24.60964577]
[1723863968753,0.00305884,2599.5,2599.4,19.60964577]
[1723863969950,0.00305884,2599.5,2599.4,19.86374577]
[1723863970360,0.00305884,2599.5,2599.4,24.86374577]
[1723863970863,0.00305884,2599.5,2599.4,26.78665577]
[1723863971657,0.00305884,2599.5,2599.4,27.78842697]
[1723863972664,0.00305884,2599.5,2599.4,29.7110953]
[1723863973054,0.00577256,2599.7,2599.6,3.03076]
[1723863973453,0.00577256,2599.7,2599.6,11.11689938]
[1723863973753,0.00577256,2599.7,2599.6,11.31307621]
[1723863973951,0.00850886,2599.7,2599.6,11.67877621]
[1723863975551,0.00850886,2599.7,2599.6,13.60153621]
[1723863975753,0.00850886,2599.7,2599.6,18.60153621]
[1723863975958,0.00850886,2599.7,2599.6,13.91204373]
[1723863976966,0.00850886,2599.7,2599.6,18.91204373]
[1723863977172,0.00850886,2599.7,2599.6,19.91372852]
[1723863978067,0.00850886,2599.7,2599.6,14.91372852]
[1723863978673,0.00850886,2599.7,2599.6,19.91372852]
[1723863978858,0.00850886,2599.7,2599.6,21.83630884]
[1723863979055,0.3585,2600.0,2599.9,1.92253]
[1723863979269,0.3585,2600.0,2599.9,6.23833]
[1723863979469,0.3585,2600.0,2599.9,10.24037648]
[1723863980167,0.36179134,2600.0,2599.9,10.24037648]
[1723863980762,0.36179134,2600.0,2599.9,14.08677648]
[1723863981766,0.36179134,2600.0,2599.9,15.08912233]
[1723863981970,0.36179134,2600.0,2599.9,14.08677648]
[1723863982669,0.36179134,2600.0,2599.9,15.08912233]
[1723863983067,0.36179134,2600.0,2599.9,14.08677648]
[1723863983268,0.36179134,2600.0,2599.9,13.98112233]
[1723863983474,0.36179134,2600.0,2599.9,14.08677648]
[1723863984067,0.36179134,2600.0,2599.9,10.24037648]
[1723863985269,0.36179134,2600.0,2599.9,11.24272233]
[1723863985876,0.36179134,2600.0,2599.9,15.08912233]
[1723863986274,0.36179134,2600.0,2599.9,17.01306555]
[1723863986477,0.36179134,2600.0,2599.9,16.00930552]
[1723863986972,0.36179134,2600.0,2599.9,16.00930892]
[1723863987181,0.36179134,2600.0,2599.9,17.51315876]
[1723863987775,0.01492136,2600.0,2599.9,22.89615876]
[1723863988183,0.01492136,2600.0,2599.9,21.39230892]
[1723863989079,0.01492136,2600.0,2599.9,22.89925488]
[1723863989279,0.01492136,2600.0,2599.9,23.40171476]
[1723863989478,0.01492136,2600.0,2599.9,21.39230892]
[1723863989681,0.01492136,2600.0,2599.9,23.40171476]
[1723863990685,0.1723676,2600.2,2600.1,1.92239]
[1723863990882,0.1723676,2600.2,2600.1,6.46067405]
[1723863991087,0.1723676,2600.2,2600.1,10.81680809]
[1723863991593,0.17690864,2600.2,2600.1,10.81680809]
[1723863993185,0.17690864,2600.2,2600.1,11.31846232]
[1723863994192,0.00454104,2600.2,2600.1,19.00912721]
[1723863994388,0.00454104,2600.2,2600.1,15.16406232]
[1723863994695,0.00454104,2600.2,2600.1,9.30905648]
[1723863995188,0.00454104,2600.2,2600.1,6.27866648]
[1723863995387,0.00454104,2600.2,2600.1,8.89621393]
[1723863995785,0.35904104,2600.2,2600.1,8.89621393]
[1723863996191,2.28135104,2600.2,2600.1,8.89629207]
[1723863996891,0.35904104,2600.2,2600.1,8.39344183]
[1723863997085,0.35904104,2600.2,2600.1,7.38674462]
[1723863997287,0.35904104,2600.2,2600.1,8.89629207]
[1723863999188,0.35904104,2600.2,2600.1,9.39615046]
[1723863999695,0.35904104,2600.2,2600.1,7.38674462]
[1723864000282,0.35904104,2600.2,2600.1,9.39615046]
[1723864000795,0.35904104,2600.2,2600.1,9.39608779]
[1723864001892,0.35904104,2600.2,2600.1,7.38668195]
[1723864002290,0.35904104,2600.2,2600.1,9.39608779]
[1723864003498,4.20464104,2600.2,2600.1,8.89747866]
[1723864003794,4.20464104,2600.2,2600.1,4.54134462]
[1723864004386,6.12695104,2600.2,2600.1,3.43334462]
[1723864004589,6.12695104,2600.2,2600.0,1.00746441]
[1723864004590,1.92239,2600.1,2600.0,1.00746441]
[1723864004899,2.29109,2600.1,2600.0,2.11546441]
[1723864005195,6.13749,2600.1,2600.0,2.11546441]
[1723864005898,6.13749,2600.1,2600.0,1.108]
[1723864006293,4.2151,2600.1,2600.0,1.108]
[1723864006596,4.2151,2600.1,2600.0,2.11546441]
[1723864006795,11.13749,2600.1,2600.0,1.00746441]
[1723864006987,1.92253,2599.9,2599.8,1.55273697]
[1723864007189,1.92253,2599.9,2599.8,0.0997]
[1723864007398,10.76893,2599.9,2599.8,0.0997]
[1723864010200,5.76893,2599.9,2599.8,0.0997]
[1723864015099,3.8464,2599.9,2599.8,2.02231]
[1723864015295,3.8464,2599.9,2599.8,0.0997]
[1723864015496,3.8464,2599.9,2599.8,0.4753]
[1723864016598,3.8464,2599.9,2599.8,2.39791]
[1723864017204,3.8464,2599.9,2599.8,0.4753]
[1723864017708,5.76899,2599.9,2599.8,1.108]
[1723864018297,3.8464,2599.9,2599.8,1.108]
[1723864018708,5.76893,2599.9,2599.8,1.108]
[1723864019511,1.92253,2600.0,2599.8,1.108]
[1723864019804,3.8464,2600.0,2599.9,0.3632]
[1723864020000,5.76886,2600.0,2599.9,0.3632]
[1723864028510,0.00577256,2600.1,2599.9,3.571]
[1723864028712,0.00577256,2600.1,2600.0,3.03046]
[1723864029016,0.00577256,2600.1,2600.0,7.3684433]
[1723864029607,0.00577256,2600.1,2600.0,9.29110938]
[1723864029911,0.00577256,2600.1,2600.0,7.3684433]
[1723864030506,0.00577256,2600.1,2600.0,10.80190257]
[1723864031310,0.00577256,2600.1,2600.0,8.87924001]
[1723864031508,0.00577256,2600.1,2600.0,10.80185272]
[1723864036028,0.00577256,2600.1,2600.0,9.29108924]
[1723864036225,0.00577256,2600.1,2600.0,10.80188595]
[1723864036827,0.00577256,2600.1,2600.0,5.4459833]
[1723864037031,5.77456256,2600.1,2600.0,1.108]
[1723864037221,6.13186256,2600.1,2600.0,1.108]
[1723864038528,2.28546256,2600.1,2600.0,1.108]
[1723864038728,6.13186256,2600.1,2600.0,1.108]
[1723864050849,11.13186256,2600.1,2599.7,1.51079671]
[1723864051026,11.13186256,2600.1,2599.6,2.0151784]
[1723864051027,1.92268,2599.7,2599.6,1.11377256]
[1723864051326,1.92283,2599.5,2599.4,0.00361934]
[1723864051527,3.84566,2599.5,2599.4,0.00361934]
[1723864051736,1.9229,2599.4,2599.2,1.108]
[1723864052030,1.92298,2599.3,2599.2,1.108]
[1723864052232,1.92305,2599.2,2599.1,1.108]
[1723864052438,8.97805,2599.2,2599.1,1.108]
[1723864052627,10.77025,2599.2,2599.1,1.108]
[1723864052833,10.77025,2599.2,2599.1,1.11094824]
[1723864055230,5.77025,2599.2,2599.1,1.11094824]
[1723864058348,6.11705,2599.2,2599.1,1.11094824]
[1723864062331,6.11705,2599.2,2599.1,0.00294824]
[1723864062332,11.11705,2599.2,2599.1,0.00294824]
[1723864062732,13.0401,2599.2,2599.1,0.00294824]
[1723864062938,3.0312,2599.0,2598.9,0.00577256]
[1723864063131,4.9544,2599.0,2598.9,0.00577256]
[1723864063338,13.8024,2599.0,2598.9,0.00577256]
[1723864063538,9.1766,2599.0,2598.9,0.00577256]
[1723864063744,14.1766,2599.0,2598.9,0.00577256]
[1723864063939,14.1766,2599.0,2598.9,0.01041019]
[1723864064637,6.1454,2599.0,2598.9,0.01041019]
[1723864064838,10.7712,2599.0,2598.9,1.11841019]
[1723864065638,5.7712,2599.0,2598.9,1.11841019]
[1723864066040,1.9232,2599.0,2598.9,1.11841019]
[1723864066238,0.3468,2599.2,2598.9,3.04168019]
[1723864066438,0.3468,2599.2,2599.1,1.108]
[1723864066439,2.26985,2599.2,2599.1,1.108]
[1723864066840,6.11705,2599.2,2599.1,1.108]
[1723864067645,5.77025,2599.2,2599.1,1.108]
[1723864067850,1.92313,2599.1,2599.0,1.4622]
[1723864068649,5.77033,2599.1,2599.0,1.4622]
[1723864071547,1.92313,2599.1,2599.0,1.4622]
[1723864073948,1.92313,2599.1,2599.0,0.3542]
[1723864075440,1.92308,2599.2,2599.0,3.38536]
[1723864075749,1.92308,2599.2,2599.1,1.108]
[1723864075955,1.92308,2599.2,2599.1,1.4655]
[1723864076137,1.92308,2599.2,2599.1,0.3575]
[1723864081254,1.92313,2599.1,2599.0,1.4622]
[1723864081853,1.92313,2599.1,2599.0,0.3542]
[1723864082051,5.77033,2599.1,2599.0,0.3542]
[1723864082447,8.80146,2599.1,2599.0,0.3542]
[1723864082653,3.8464,2599.0,2598.9,0.01041019]
[1723864082856,8.8024,2599.0,2598.9,0.01041019]
[1723864083149,13.8024,2599.0,2598.9,0.01041019]
[1723864083847,15.7256,2599.0,2598.9,0.01041019]
[1723864084051,1.9235,2598.6,2598.5,0.3416]
[1723864084357,3.0315,2598.6,2598.5,0.3416]
[1723864084554,6.8795,2598.6,2598.5,0.3416]
[1723864084859,5.7715,2598.6,2598.5,0.3416]
[1723864085156,5.7715,2598.6,2598.5,0.34542327]
[1723864091856,5.7715,2598.6,2598.5,1.45342327]
[1723864092058,1.92335,2598.8,2598.5,3.37696327]
[1723864092267,1.92335,2598.8,2598.7,1.108]
[1723864092863,5.77135,2598.8,2598.7,1.108]
[1723864093061,5.77135,2598.8,2598.7,1.4516]
[1723864093963,5.77135,2598.8,2598.7,0.3436]
[1723864099869,6.87935,2598.8,2598.7,0.3436]
[1723864101671,8.8027,2598.8,2598.7,0.3436]
[1723864132486,4.9547,2598.8,2598.7,0.3436]
[1723864133490,8.8027,2598.8,2598.7,0.3436]
[1723864133991,3.847,2598.6,2598.5,0.34542327]
[1723864134292,4.955,2598.6,2598.5,0.34542327]
[1723864134495,8.803,2598.6,2598.5,0.34542327]
[1723864136392,1.92364,2598.4,2598.3,0.00577256]
[1723864136587,1.92364,2598.4,2598.1,0.3623]
[1723864136588,3.84758,2598.2,2598.1,0.3623]
[1723864136795,8.16338,2598.2,2598.1,0.3623]
[1723864136998,12.01218,2598.2,2598.1,0.3623]
[1723864137396,8.80781284,2598.2,2598.1,0.36512109]
[1723864139388,12.01561284,2598.2,2598.1,0.36512109]
[1723864140401,12.01561284,2598.2,2598.1,0.00282109]
[1723864141293,3.84788,2598.0,2597.9,0.00577256]
[1723864141492,8.80468,2598.0,2597.9,0.00577256]
[1723864142203,8.80468,2598.0,2597.9,0.0100799]
[1723864144390,1.92394,2598.0,2597.9,0.0100799]
[1723864144707,3.03194,2598.0,2597.9,0.3674799]
[1723864149407,3.03194,2598.0,2597.9,0.0100799]
[1723864151393,4.95588,2598.0,2597.9,0.0100799]
[1723864158201,3.84788,2598.0,2597.9,0.0100799]
[1723864158396,4.95588,2598.0,2597.9,0.0100799]
[1723864160897,4.95588,2598.0,2597.9,0.3749799]
[1723864164502,3.03194,2598.0,2597.9,0.3749799]
[1723864165398,4.95588,2598.0,2597.9,0.0100799]
[1723864166411,8.80468,2598.0,2597.9,0.0100799]
[1723864166603,7.69668,2598.0,2597.9,0.0100799]
[1723864166800,8.80468,2598.0,2597.9,0.0100799]
[1723864173112,10.72862,2598.0,2597.9,0.0100799]
[1723864178710,13.93642,2598.0,2597.9,0.0100799]
[1723864180918,10.72862,2598.0,2597.9,0.0100799]
[1723864181118,1.92416,2597.7,2597.6,0.7136]
[1723864181319,3.03216,2597.7,2597.6,0.7136]
[1723864181723,1.92453,2597.2,2597.1,1.00845182]
[1723864181927,1.92453,2597.2,2597.1,0.3492]
[1723864181928,3.03253,2597.2,2597.1,0.3492]
[1723864182224,3.03253,2597.2,2597.1,4.20352787]
[1723864182924,3.03253,2597.2,2597.1,0.35312787]
[1723864188413,1.92453,2597.2,2597.1,0.35312787]
[1723864188618,3.03253,2597.2,2597.1,0.35312787]
[1723864188818,2.29794,2597.4,2597.1,0.35312787]
[1723864188819,1.9245,2597.3,2597.1,0.35312787]
[1723864189014,1.108,2597.4,2597.2,3.8504]
[1723864189419,1.108,2597.4,2597.3,3.8504]
[1723864189612,1.108,2597.4,2597.2,3.8504]
[1723864189819,3.03239,2597.4,2597.2,3.8504]
[1723864190129,3.03238,2597.4,2597.3,3.8504]
[1723864190427,3.03238,2597.4,2597.2,3.8504]
[1723864190628,1.108,2597.4,2597.2,3.8504]
[1723864190829,1.92438,2597.4,2597.3,3.8504]
[1723864191126,1.108,2597.3,2597.2,3.8504]
[1723864191322,1.108,2597.3,2597.1,0.35312787]
[1723864191621,1.4871,2597.3,2597.1,0.35312787]
[1723864192016,3.03252,2597.3,2597.1,0.35312787]
[1723864192828,1.92453,2597.2,2597.1,0.35312787]
[1723864193227,1.92453,2597.2,2597.1,4.20352787]
[1723864194946,1.92453,2597.2,2597.1,0.00392787]
[1723864195238,2.28043,2597.2,2597.1,0.00392787]
[1723864203344,3.38843,2597.2,2597.1,0.00392787]
[1723864209752,1.92453,2597.2,2597.1,0.00392787]
[1723864209957,1.92453,2597.2,2597.1,0.35122787]
[1723864209958,3.03253,2597.2,2597.1,0.35122787]
[1723864210750,3.03253,2597.2,2597.1,0.00392787]
[1723864217558,1.92453,2597.2,2597.1,0.00392787]
[1723864217753,3.03253,2597.2,2597.1,0.00392787]
[1723864218154,1.92453,2597.2,2597.1,0.00392787]
[1723864218466,3.03253,2597.2,2597.1,0.00392787]
[1723864218866,1.108,2597.2,2597.1,0.00392787]
[1723864219365,3.03253,2597.2,2597.1,0.00392787]
[1723864223064,1.108,2597.2,2597.1,0.00392787]
[1723864223467,3.03253,2597.2,2597.1,0.00392787]
[1723864223670,1.108,2597.2,2597.1,0.00392787]
[1723864223967,1.108,2597.3,2597.2,1.92453]
[1723864224162,1.108,2597.3,2597.2,5.77493]
[1723864224370,1.108,2597.3,2597.2,4.2259]
[1723864224968,1.92436,2597.5,2597.2,6.15043]
[1723864225164,1.108,2597.3,2597.2,6.15043]
[1723864226460,1.108,2597.3,2597.2,7.15888182]
[1723864226663,1.108,2597.3,2597.2,6.15043]
[1723864232273,1.108,2597.3,2597.2,4.2259]
[1723864232677,1.92453,2597.2,2597.1,0.00392787]
[1723864232974,4.11503,2597.2,2597.1,0.00392787]
[1723864235072,3.37963,2597.2,2597.1,0.00392787]
[1723864236270,3.37963,2597.2,2597.1,3.85432787]
[1723864236675,0.3516,2597.4,2597.1,10.77888787]
[1723864236880,1.92448,2597.3,2597.1,2.93693969]
[1723864237182,1.92448,2597.3,2597.1,6.78733969]
[1723864237380,1.92448,2597.3,2597.2,3.8504]
[1723864237577,3.38403,2597.4,2597.2,3.8504]
[1723864238672,3.38403,2597.4,2597.1,0.00392787]
[1723864238673,1.92446,2597.3,2597.1,0.00392787]
[1723864238881,1.108,2597.2,2597.1,0.00392787]
[1723864239085,1.108,2597.2,2597.1,3.85432787]
[1723864239975,3.03253,2597.2,2597.1,3.85432787]
[1723864241170,3.03253,2597.2,2597.1,0.00392787]
[1723864246280,3.03253,2597.2,2597.1,0.34942787]
[1723864246580,3.38403,2597.4,2597.1,6.12437787]
[1723864246785,3.38403,2597.4,2597.1,3.28242969]
[1723864246987,1.92447,2597.3,2597.1,1.35787969]
[1723864247285,1.92447,2597.3,2597.1,1.92853787]
[1723864247286,1.108,2597.2,2597.1,1.92853787]
[1723864247482,1.108,2597.2,2597.1,6.78738969]
[1723864247688,1.108,2597.2,2597.1,5.77893787]
[1723864249782,1.108,2597.2,2597.1,9.99518969]
[1723864250580,1.108,2597.2,2597.1,10.91163953]
[1723864250784,3.38399,2597.4,2597.1,11.92047552]
[1723864250990,3.38399,2597.4,2597.1,6.14517386]
[1723864252589,0.3516,2597.4,2597.2,1.92453]
[1723864252789,1.4596,2597.4,2597.2,1.92453]
[1723864252988,1.4596,2597.4,2597.3,0.376]
[1723864257686,0.00343284,2598.2,2597.3,11.88307734]
[1723864257888,0.3466,2598.0,2597.7,4.2164378]
[1723864258090,0.3466,2598.0,2597.8,1.7393378]
[1723864258292,0.3466,2598.0,2597.8,7.8882978]
[1723864258498,0.3466,2598.0,2597.9,3.8496]
[1723864259296,1.4546,2598.0,2597.7,1.0086378]
[1723864259495,1.92424,2597.6,2597.4,1.3654378]
[1723864259688,1.4532,2597.5,2597.4,1.3654378]
[1723864259993,1.4532,2597.5,2597.4,0.3568]
[1723864260589,3.37751,2597.5,2597.4,0.3568]
[1723864260992,1.4532,2597.5,2597.4,0.3568]
[1723864261989,3.37751,2597.5,2597.4,0.3568]
[1723864263387,1.4532,2597.5,2597.4,0.3568]
[1723864264399,0.3452,2597.5,2597.4,0.3568]
[1723864264598,1.92427,2597.6,2597.4,8.4228378]
[1723864264787,1.92427,2597.6,2597.4,3.5646]
[1723864264991,1.92427,2597.6,2597.4,0.3568]
[1723864265190,3.03219,2597.7,2597.4,2.28117]
[1723864265393,3.03219,2597.7,2597.4,3.2898078]
[1723864265990,1.92418,2597.7,2597.5,1.108]
[1723864266294,0.3694,2597.8,2597.5,6.3239378]
[1723864266595,0.3694,2597.8,2597.5,5.3153]
[1723864267102,2.29351,2597.8,2597.5,7.23958]
[1723864268904,1.92421,2597.7,2597.5,1.108]
[1723864269298,1.92421,2597.7,2597.5,4.9576]
[1723864269705,2.29354,2597.8,2597.5,4.9576]
[1723864269905,2.29354,2597.8,2597.5,1.108]
[1723864270405,1.92418,2597.7,2597.5,1.108]
[1723864270910,1.92418,2597.7,2597.5,4.9576]
[1723864273011,1.92416,2597.7,2597.5,4.9576]
[1723864273915,1.92416,2597.7,2597.5,1.108]
[1723864275608,1.92416,2597.7,2597.5,3.03231]
[1723864275813,3.40154,2597.8,2597.5,3.03231]
[1723864276017,2.29354,2597.8,2597.5,3.41111]
[1723864276409,0.3694,2597.8,2597.7,1.92416]
[1723864276612,0.3694,2597.8,2597.6,5.13199]
[1723864276917,0.3694,2597.8,2597.7,0.3673]
[1723864281422,4.4567,2598.3,2597.7,10.3249]
[1723864281716,0.37663284,2598.2,2597.9,1.92397]
[1723864281918,1.48463284,2598.2,2597.9,1.92397]
[1723864282119,1.48463284,2598.2,2597.8,1.8398]
[1723864282120,1.82583284,2598.2,2597.8,0.3591]
[1723864282422,3.74963284,2598.2,2597.8,2.28314]
[1723864282922,1.82583284,2598.2,2597.9,1.92401]
[1723864285120,0.00343284,2598.2,2598.1,3.03187]
[1723864285624,0.00343284,2598.2,2598.1,6.88067]
[1723864289220,0.00343284,2598.2,2598.1,7.22537]
[1723864298224,1.92722284,2598.2,2598.1,0.3447]
[1723864298721,2.29872284,2598.2,2598.1,0.3447]
[1723864303233,0.37493284,2598.2,2597.8,4.57400068]
[1723864303422,1.92396,2598.0,2597.7,2.46950068]
[1723864303931,0.3632,2597.9,2597.7,2.46950068]
[1723864304131,0.3632,2597.9,2597.7,4.39365068]
[1723864306133,1.92409,2597.8,2597.7,1.4624]
[1723864306334,1.92409,2597.8,2597.7,1.108]
[1723864306634,1.92416,2597.7,2597.6,1.108]
[1723864307537,2.63733,2597.8,2597.6,1.108]
[1723864311137,2.63733,2597.8,2597.6,3.03222]
[1723864311138,0.7132,2597.8,2597.6,3.03222]
[1723864311441,0.3632,2597.9,2597.8,1.92409]
[1723864311637,0.3632,2597.9,2597.8,3.03209]
[1723864311831,0.3632,2597.9,2597.8,3.39939]
[1723864314036,0.3632,2597.9,2597.6,1.00710068]
[1723864314037,1.92416,2597.7,2597.6,1.00710068]
[1723864314340,1.92442,2597.4,2597.1,8.60072787]
[1723864314547,0.3763,2597.3,2597.1,8.60072787]
[1723864314834,1.0792,2597.3,2597.1,8.60072787]
[1723864315042,3.00367,2597.3,2597.1,8.60072787]
[1723864318140,1.92453,2597.2,2597.1,8.60072787]
[1723864318744,1.92453,2597.2,2597.1,0.00392787]
[1723864325436,3.00368,2597.3,2597.1,0.00392787]
[1723864325636,1.92435,2597.5,2597.2,3.03252]
[1723864325836,1.92438,2597.4,2597.3,0.7003]
[1723864326734,2.29325,2597.5,2597.3,0.7003]
[1723864329945,1.92438,2597.4,2597.3,0.7003]
[1723864330540,2.29326,2597.5,2597.3,0.7003]
[1723864331041,0.3689,2597.5,2597.3,0.7003]
[1723864331441,0.3689,2597.5,2597.3,2.62473]
[1723864332733,0.3689,2597.5,2597.3,2.62475]
[1723864332942,1.4769,2597.5,2597.3,2.62475]
[1723864333138,1.4769,2597.5,2597.3,0.7003]
[1723864333448,1.92438,2597.4,2597.3,0.7003]
[1723864333639,1.92447,2597.3,2597.1,1.11192787]
[1723864335240,1.4769,2597.5,2597.1,6.24432787]
[1723864335546,1.92439,2597.4,2597.2,0.3473]
[1723864335844,1.92439,2597.4,2597.3,0.7383]
[1723864336351,3.40125,2597.5,2597.3,0.7383]
[1723864336847,1.92438,2597.4,2597.3,0.7383]
[1723864338950,1.92438,2597.4,2597.3,0.3633]
[1723864339946,3.03238,2597.4,2597.3,0.3633]
[1723864343355,4.9584,2597.4,2597.1,0.00392787]
[1723864343662,3.03253,2597.2,2597.1,0.00392787]
[1723864345756,3.84936,2597.0,2596.9,0.00577256]
[1723864346060,4.95736,2597.0,2596.9,0.00577256]
[1723864346246,8.80776,2597.0,2596.9,0.00577256]
[1723864346848,6.88308,2597.0,2596.9,0.00972706]